bitfinex/quotes_BTCUSD_20241216
["timestamp","ask_amount","ask_price","bid_price","bid_amount"]
[1734349119763,0.64361246,104160.0,104150.0,8.63e-05]
[1734349120568,0.81459939,104160.0,104150.0,8.63e-05]
[1734349121049,0.81459939,104160.0,104150.0,0.1729133]
[1734349121280,0.64361246,104160.0,104150.0,0.24253683]
[1734349121471,0.48723783,104160.0,104150.0,0.24253683]
[1734349121680,0.43983783,104160.0,104150.0,0.24253683]
[1734349121873,0.38983783,104160.0,104150.0,0.24253683]
[1734349122230,0.43983783,104160.0,104150.0,0.1879034]
[1734349122459,0.43983783,104160.0,104150.0,0.25848695]
[1734349122753,0.31159763,104160.0,104150.0,0.25752693]
[1734349122886,0.26159763,104160.0,104150.0,0.25752693]
[1734349123091,0.31159763,104160.0,104150.0,0.25752693]
[1734349123976,0.22829763,104160.0,104150.0,0.25752693]
[1734349124391,0.22841157,104160.0,104150.0,0.25752693]
[1734349124597,0.35682268,104160.0,104150.0,0.25752693]
[1734349128288,0.35699528,104160.0,104150.0,0.25752693]
[1734349129910,0.35699528,104160.0,104150.0,0.24253683]
[1734349130148,0.26423111,104160.0,104150.0,0.24253683]
[1734349130565,0.21423111,104160.0,104150.0,0.24253683]
[1734349130817,0.26423111,104160.0,104150.0,0.24253683]
[1734349131253,0.21423111,104160.0,104150.0,0.24253683]
[1734349131726,0.08582,104160.0,104150.0,0.24253683]
[1734349132904,0.08582,104160.0,104150.0,0.25752642]
[1734349134148,0.08582,104160.0,104150.0,0.18790289]
[1734349134359,0.21423111,104160.0,104150.0,0.25848641]
[1734349134576,0.21423111,104160.0,104150.0,0.26855133]
[1734349135025,0.08582,104160.0,104150.0,0.26855133]
[1734349135431,0.13582,104160.0,104150.0,0.26855133]
[1734349135636,0.0001726,104160.0,104150.0,0.52947486]
[1734349135842,0.0001726,104160.0,104150.0,0.70999331]
[1734349136080,0.0001726,104170.0,104160.0,0.322811]
[1734349136306,0.0001726,104170.0,104160.0,0.54828581]
[1734349136525,0.0001726,104170.0,104160.0,0.46205806]
[1734349136733,0.0001726,104170.0,104160.0,0.62597229]
[1734349136945,0.00073503,104180.0,104170.0,0.13924706]
[1734349137157,0.00073503,104180.0,104170.0,0.64859137]
[1734349137376,3e-08,104180.0,104170.0,1.19769067]
[1734349137606,3e-08,104180.0,104170.0,0.80348304]
[1734349137788,3e-08,104180.0,104170.0,0.80333186]
[1734349138018,3e-08,104180.0,104170.0,1.10459985]
[1734349138209,3e-08,104180.0,104170.0,0.93244671]
[1734349138415,3e-08,104180.0,104170.0,0.80333186]
[1734349138827,3e-08,104180.0,104170.0,0.82462205]
[1734349139206,3e-08,104180.0,104170.0,0.80333186]
[1734349139411,3e-08,104180.0,104170.0,0.73854548]
[1734349140098,3e-08,104180.0,104170.0,1.36072205]
[1734349140287,3e-08,104180.0,104170.0,1.33943186]
[1734349141049,3e-08,104180.0,104170.0,1.36356505]
[1734349141264,3e-08,104180.0,104170.0,1.5113537]
[1734349141573,3e-08,104180.0,104170.0,1.38244025]
[1734349141769,4e-05,104210.0,104200.0,0.24236753]
[1734349143328,4e-05,104210.0,104200.0,0.31199106]
[1734349143774,4e-05,104210.0,104200.0,0.62590529]
[1734349143982,0.0769128,104230.0,104210.0,0.345434]
[1734349144198,0.1220128,104230.0,104220.0,0.24329383]
[1734349144395,0.1220128,104230.0,104220.0,0.31195806]
[1734349144626,0.1220128,104230.0,104220.0,0.172711]
[1734349144887,0.1220128,104230.0,104220.0,0.31291739]
[1734349145157,0.0769128,104230.0,104220.0,0.31195806]
[1734349145402,0.0002128,104230.0,104220.0,0.31212721]
[1734349145698,0.0002128,104230.0,104220.0,0.48639467]
[1734349146227,0.0002128,104230.0,104220.0,0.85291229]
[1734349146495,0.0002128,104230.0,104220.0,0.94720299]
[1734349146728,0.0002128,104230.0,104220.0,0.74285122]
[1734349146984,0.0002128,104230.0,104220.0,0.66333359]
[1734349147237,0.0002128,104230.0,104220.0,0.66489559]
[1734349147507,0.0002128,104230.0,104220.0,0.72079559]
[1734349147748,8e-07,104230.0,104220.0,0.72079559]
[1734349147970,8e-07,104230.0,104220.0,0.59793459]
[1734349148586,8e-07,104230.0,104220.0,0.74793459]
[1734349149222,8e-07,104230.0,104220.0,0.75896713]
[1734349149455,0.19630854,104240.0,104230.0,0.55261534]
[1734349149628,0.19630854,104240.0,104230.0,0.64690604]
[1734349149842,0.19630854,104240.0,104230.0,0.81960104]
[1734349149843,0.19272406,104240.0,104230.0,0.81960104]
[1734349150096,0.19272406,104240.0,104230.0,0.86960104]
[1734349150540,0.18883303,104240.0,104230.0,0.79289504]
[1734349151162,0.1806726,104270.0,104230.0,0.89877238]
[1734349151539,0.1306726,104270.0,104260.0,0.27852234]
[1734349151776,0.1306726,104270.0,104250.0,0.50727825]
[1734349151918,0.1306726,104270.0,104260.0,0.27948131]
[1734349152144,0.1806726,104270.0,104260.0,0.27852234]
[1734349152363,0.1806726,104270.0,104260.0,0.172645]
[1734349152613,0.0825,104260.0,104250.0,0.33462425]
[1734349152823,0.1304,104260.0,104250.0,0.33462425]
[1734349153863,0.1304,104250.0,104240.0,0.172669]
[1734349154159,0.2246907,104250.0,104240.0,0.17362822]
[1734349154358,0.1304,104250.0,104240.0,0.27950556]
[1734349154557,0.1304,104250.0,104240.0,0.27854634]
[1734349155407,0.0825,104250.0,104240.0,0.27854634]
[1734349156244,0.0825,104250.0,104240.0,0.172669]
[1734349156456,0.0825,104250.0,104240.0,0.17362816]
[1734349156877,0.0825,104250.0,104240.0,0.172669]
[1734349157291,0.0825,104250.0,104230.0,0.345371]
[1734349157292,0.3361367,104250.0,104230.0,0.345371]
[1734349157499,0.2246907,104240.0,104230.0,0.172683]
[1734349157700,0.37596942,104240.0,104230.0,0.172683]
[1734349158121,0.37596942,104240.0,104230.0,0.17364229]
[1734349158533,0.42596942,104240.0,104230.0,0.17364229]
[1734349158740,0.0825,104230.0,104220.0,0.326215]
[1734349159367,0.1325,104230.0,104220.0,0.326215]
[1734349159981,0.28967813,104230.0,104220.0,0.326215]
[1734349160183,0.33907813,104230.0,104220.0,0.326215]
[1734349160428,0.33907813,104230.0,104170.0,8.62e-05]
[1734349160429,0.0786,104200.0,104170.0,8.62e-05]
[1734349160636,0.2228907,104200.0,104180.0,0.153567]
[1734349160846,0.2228907,104200.0,104180.0,0.460708]
[1734349161058,0.2228907,104200.0,104190.0,0.153565]
[1734349161267,0.38217232,104200.0,104190.0,0.153565]
[1734349162084,0.05,104190.0,104180.0,0.307139]
[1734349163329,0.00016874,104190.0,104180.0,0.153567]
[1734349163546,0.05016874,104190.0,104180.0,0.15452667]
[1734349163745,0.00016874,104190.0,104180.0,0.26040401]
[1734349163952,0.00016874,104190.0,104180.0,0.25944434]
[1734349164164,0.05016874,104190.0,104180.0,0.15956094]
[1734349164366,0.05016874,104190.0,104180.0,0.153567]
[1734349164777,0.13156874,104190.0,104180.0,0.153567]
[1734349164979,0.18160874,104190.0,104180.0,0.153567]
[1734349165388,0.18160874,104190.0,104180.0,0.15452673]
[1734349166176,0.13160874,104190.0,104180.0,0.15452673]
[1734349166389,0.18160874,104190.0,104180.0,0.15452673]
[1734349169073,0.13160874,104190.0,104180.0,0.15452673]
[1734349169270,0.18160874,104190.0,104180.0,0.15452673]
[1734349170098,0.18160874,104190.0,104170.0,0.41986985]
[1734349170337,0.18160874,104190.0,104180.0,0.15452773]
[1734349172885,0.13160874,104190.0,104180.0,0.15452773]
[1734349173098,0.18160874,104190.0,104180.0,0.15452773]
[1734349173870,0.13160874,104190.0,104180.0,0.15452773]
[1734349174324,0.18160874,104190.0,104180.0,0.15452773]
[1734349174672,0.13160874,104190.0,104180.0,0.15452773]
[1734349174878,0.18160874,104190.0,104180.0,0.15452773]
[1734349175750,0.13160874,104190.0,104180.0,0.15452773]
[1734349175975,0.18160874,104190.0,104180.0,0.15452773]
[1734349176179,0.18160874,104190.0,104180.0,0.15461393]
[1734349176387,0.13160874,104190.0,104180.0,0.15461393]
[1734349176841,0.18160874,104190.0,104180.0,0.15461393]
[1734349177634,0.13160874,104190.0,104180.0,0.15461393]
[1734349177836,0.18160874,104190.0,104180.0,0.15461393]
[1734349178687,0.30348938,104190.0,104180.0,0.00104593]
[1734349178894,0.40918661,104190.0,104180.0,8.62e-05]
[1734349179098,0.40918661,104190.0,104180.0,0.1536662]
[1734349179950,0.40918661,104190.0,104180.0,0.15462597]
[1734349180174,0.38159667,104190.0,104180.0,0.15462597]
[1734349181027,0.13160874,104190.0,104180.0,0.26050331]
[1734349181232,0.13160874,104190.0,104180.0,0.25954354]
[1734349181444,0.13160874,104190.0,104180.0,0.1536662]
[1734349181685,0.13160874,104190.0,104180.0,0.15462592]
[1734349182556,0.13160874,104190.0,104180.0,0.1536662]
[1734349184259,0.38040142,104190.0,104180.0,0.1536662]
[1734349186460,0.38040142,104190.0,104180.0,8.62e-05]
[1734349186892,0.38040142,104190.0,104180.0,0.1536662]
[1734349187100,0.38040142,104190.0,104180.0,8.62e-05]
[1734349187101,0.57235842,104190.0,104180.0,8.62e-05]
[1734349187552,0.82235842,104190.0,104180.0,8.62e-05]
[1734349187964,0.91653368,104190.0,104180.0,8.62e-05]
[1734349188196,1.07241102,104190.0,104180.0,8.62e-05]
[1734349189296,0.34449944,104190.0,104180.0,0.1536662]
[1734349189530,0.42649944,104190.0,104180.0,0.15462598]
[1734349189748,0.22159944,104190.0,104180.0,8.62e-05]
[1734349190166,0.37783803,104190.0,104180.0,0.1536662]
[1734349190603,0.62783803,104190.0,104180.0,0.1536662]
[1734349196346,0.88191834,104190.0,104180.0,8.62e-05]
[1734349197450,0.9669794,104190.0,104180.0,8.62e-05]
[1734349197657,1.07285674,104190.0,104180.0,8.62e-05]
[1734349198086,0.9669794,104190.0,104180.0,8.62e-05]
[1734349198749,1.09457099,104190.0,104180.0,8.62e-05]
[1734349199352,1.26469311,104190.0,104180.0,8.62e-05]
[1734349199762,1.37057045,104190.0,104180.0,8.62e-05]
[1734349200177,1.37074285,104190.0,104180.0,8.62e-05]
[1734349200400,1.26486551,104190.0,104180.0,8.62e-05]
[1734349200608,1.47751816,104190.0,104180.0,8.62e-05]
[1734349201268,1.27519261,104190.0,104180.0,8.62e-05]
[1734349201470,1.4027842,104190.0,104180.0,8.62e-05]
[1734349202461,1.2620693,104190.0,104180.0,8.62e-05]
[1734349203531,1.09194718,104190.0,104180.0,8.62e-05]
[1734349204566,1.13447771,104190.0,104180.0,8.62e-05]
[1734349205543,0.38399,104170.0,104150.0,8.63e-05]
[1734349205757,0.38399,104170.0,104140.0,8.63e-05]
[1734349205758,0.56763,104150.0,104140.0,8.63e-05]
[1734349205968,0.192067,104130.0,104120.0,0.11546686]
[1734349206174,0.4609734,104130.0,104120.0,0.11546686]
[1734349206406,0.4609734,104130.0,104120.0,0.11846618]
[1734349206407,0.75905793,104130.0,104120.0,0.11846618]
[1734349206616,0.80905793,104130.0,104120.0,0.11846618]
[1734349206819,0.80905793,104130.0,104120.0,0.26913486]
[1734349207061,0.80905793,104130.0,104120.0,0.26922053]
[1734349207062,0.68081629,104130.0,104120.0,0.26922053]
[1734349207291,0.50993384,104130.0,104120.0,0.26922053]
[1734349207541,0.50966535,104130.0,104120.0,0.26922053]
[1734349207771,0.63026917,104130.0,104120.0,0.26922053]
[1734349208347,0.30754548,104130.0,104120.0,0.26922053]
[1734349208615,0.17959261,104130.0,104120.0,0.26922053]
[1734349208827,0.22959261,104130.0,104120.0,0.26922053]
[1734349209255,0.0942907,104130.0,104120.0,0.26922053]
[1734349209671,0.1442907,104130.0,104120.0,0.26922053]
[1734349209890,0.1442907,104130.0,104120.0,0.25423063]
[1734349210118,0.0942907,104130.0,104120.0,0.25423063]
[1734349211446,0.1442907,104130.0,104120.0,0.25423063]
[1734349211677,0.1442907,104130.0,104120.0,0.10056263]
[1734349211678,0.46680089,104130.0,104120.0,0.10056263]
[1734349211882,1.32570275,104130.0,104120.0,0.10056263]
[1734349212089,1.32568154,104130.0,104120.0,0.10056263]
[1734349212297,1.21973092,104130.0,104120.0,0.10056263]
[1734349212721,1.46973092,104130.0,104120.0,0.10056263]
[1734349213160,1.46973092,104130.0,104120.0,0.10064883]
[1734349213421,1.54860826,104130.0,104120.0,0.10064883]
[1734349213618,1.42096337,104130.0,104120.0,0.10064883]
[1734349213831,1.2506442,104130.0,104120.0,0.10064883]
[1734349214050,1.15646894,104130.0,104120.0,0.10064883]
[1734349214480,1.32650933,104130.0,104120.0,0.10064883]
[1734349215327,1.45397841,104130.0,104120.0,0.10064883]
[1734349215770,1.50397841,104130.0,104120.0,0.10064883]
[1734349215975,1.34810107,104130.0,104120.0,0.10064883]
[1734349216190,1.46004638,104130.0,104120.0,0.11564587]
[1734349216410,1.24714741,104130.0,104120.0,0.11564587]
[1734349216679,1.35302475,104130.0,104120.0,0.11564587]
[1734349217130,1.18298436,104130.0,104120.0,0.11564587]
[1734349217345,1.31554862,104130.0,104120.0,0.11564587]
[1734349217547,1.18807954,104130.0,104120.0,0.11564587]
[1734349218014,1.19836322,104130.0,104120.0,0.11564587]
[1734349218241,1.3488323,104130.0,104120.0,0.11564587]
[1734349218480,1.3988323,104130.0,104120.0,0.11564587]
[1734349218921,0.318304,104110.0,104100.0,0.06323844]
[1734349219132,0.62101077,104110.0,104100.0,0.06323844]
[1734349220447,0.56982997,104110.0,104100.0,0.06323844]
[1734349220893,0.56982997,104110.0,104100.0,0.05323844]
[1734349221573,0.37772597,104110.0,104100.0,0.05323844]
[1734349221825,0.81982997,104110.0,104100.0,0.05323844]
[1734349222033,0.81582997,104110.0,104100.0,0.05323844]
[1734349222909,0.91000523,104110.0,104100.0,0.05323844]
[1734349223574,0.81582997,104110.0,104100.0,0.05323844]
[1734349223765,0.81586997,104110.0,104100.0,0.05323844]
[1734349224897,0.81586997,104110.0,104100.0,0.05332464]
[1734349227677,0.82616238,104110.0,104100.0,0.05332464]
[1734349229855,0.1301,104090.0,104080.0,1.7138023]
[1734349230061,0.3046213,104090.0,104080.0,1.8675293]
[1734349230270,0.30366153,104090.0,104080.0,1.8675293]
[1734349230679,0.55366153,104090.0,104080.0,1.8675293]
[1734349231134,0.55422485,104090.0,104080.0,1.7138023]
[1734349231358,0.55422485,104090.0,104080.0,1.8675293]
[1734349231780,0.39485402,104090.0,104080.0,1.8675293]
[1734349232466,0.39485402,104090.0,104080.0,1.87052939]
[1734349233110,0.39485402,104090.0,104080.0,1.8855297]
[1734349233326,0.39485402,104090.0,104080.0,1.88252961]
[1734349233779,0.63694399,104090.0,104080.0,1.88252961]
[1734349234633,0.63694399,104090.0,104080.0,1.88552964]
[1734349235902,0.63694399,104090.0,104080.0,1.88252961]
[1734349236744,0.63694399,104090.0,104080.0,1.88561591]
[1734349237484,0.63694399,104090.0,104080.0,1.88261591]
[1734349238090,0.55484399,104090.0,104080.0,1.98849325]
[1734349238746,0.39485402,104090.0,104080.0,1.98849325]
[1734349240011,0.39485402,104090.0,104080.0,1.97349294]
[1734349240220,0.30056332,104090.0,104080.0,1.97349294]
[1734349240434,0.25056332,104090.0,104080.0,1.97349294]
[1734349240638,0.00056332,104090.0,104080.0,2.05119294]
[1734349244649,0.00056332,104090.0,104080.0,1.94385764]
[1734349247797,0.00056332,104090.0,104080.0,2.03814834]
[1734349248049,0.00056332,104090.0,104080.0,2.11484834]
[1734349248470,0.00056332,104090.0,104080.0,2.02055764]
[1734349249920,0.00056332,104090.0,104080.0,1.8379803]
[1734349249921,0.05056332,104090.0,104080.0,1.8379803]
[1734349250388,0.14485402,104090.0,104080.0,1.8379803]
[1734349250613,0.39485402,104090.0,104080.0,1.8379803]
[1734349251020,0.39485402,104090.0,104080.0,1.94385764]
[1734349251225,0.54427269,104090.0,104080.0,1.94385764]
[1734349252264,0.54431269,104090.0,104080.0,1.94385764]
[1734349253981,0.39489402,104090.0,104080.0,1.94385764]
[1734349254630,0.14489402,104090.0,104080.0,1.94385764]
[1734349255262,0.23024862,104090.0,104080.0,1.94385764]
[1734349255711,0.14489402,104090.0,104080.0,1.94385764]
[1734349255920,0.05060332,104090.0,104080.0,1.94385764]
[1734349256343,0.00060332,104090.0,104080.0,1.94385764]
[1734349256551,0.05060332,104090.0,104080.0,1.94385764]
[1734349259243,0.00060332,104090.0,104080.0,1.94385764]
[1734349259444,0.05060332,104090.0,104080.0,1.94385764]
[1734349259648,0.00060332,104090.0,104080.0,1.94385764]
[1734349259822,0.05060332,104090.0,104080.0,1.94385764]
[1734349260248,0.08613052,104090.0,104080.0,1.94385764]
[1734349260446,0.05077592,104090.0,104080.0,1.94385764]
[1734349260699,0.63377973,104090.0,104080.0,1.94385764]
[1734349260846,0.39506662,104090.0,104080.0,1.96338411]
[1734349261947,0.54987268,104090.0,104080.0,1.96338411]
[1734349262695,0.63544014,104090.0,104080.0,1.96338411]
[1734349263947,0.48063408,104090.0,104080.0,1.96338411]
[1734349264147,0.48063408,104090.0,104080.0,1.96238411]
[1734349265597,0.60898528,104090.0,104080.0,1.96238411]
[1734349265808,0.48063408,104090.0,104080.0,1.96238411]
[1734349268589,0.38634338,104090.0,104080.0,1.96238411]
[1734349270616,0.30077592,104090.0,104080.0,1.96238411]
[1734349271647,0.38637288,104090.0,104080.0,1.96238411]
[1734349272034,0.38637288,104090.0,104080.0,1.99592481]
[1734349273231,0.30077592,104090.0,104080.0,1.99592481]
[1734349274349,0.38637288,104090.0,104080.0,1.99592481]
[1734349276490,0.25077592,104090.0,104080.0,2.06563383]
[1734349276709,0.00077592,104090.0,104080.0,2.14073383]
[1734349276921,0.00077592,104090.0,104080.0,2.52733121]
[1734349277154,1.25,104100.0,104090.0,1.046816]
[1734349277372,1.25,104100.0,104090.0,1.53193599]
[1734349277591,1.25,104100.0,104090.0,1.74382769]
[1734349277814,1.0,104100.0,104090.0,1.74382769]
[1734349278031,0.88024114,104100.0,104090.0,1.57123599]
[1734349278266,0.88024114,104100.0,104090.0,1.76986933]
[1734349278478,0.78418114,104100.0,104090.0,1.68368593]
[1734349278691,0.78418114,104100.0,104090.0,1.7698661]
[1734349278909,0.78418114,104100.0,104090.0,1.76986562]
[1734349279115,0.78418114,104100.0,104090.0,1.48836628]
[1734349279336,0.78418114,104100.0,104090.0,0.78664281]
[1734349280027,0.78418114,104100.0,104090.0,0.7806437]
[1734349280920,0.78418114,104100.0,104090.0,0.7960624]
[1734349281130,0.78418114,104100.0,104090.0,0.80206045]
[1734349281991,0.78418114,104100.0,104090.0,0.7960624]
[1734349283030,0.78422114,104100.0,104090.0,0.7960624]
[1734349283883,0.78439354,104100.0,104090.0,0.7960624]
[1734349284093,0.78439354,104100.0,104090.0,0.80206023]
[1734349284748,0.78439354,104100.0,104090.0,0.81205466]
[1734349284957,0.78439354,104100.0,104090.0,1.34815466]
[1734349286665,0.68833354,104100.0,104090.0,1.38884442]
[1734349286880,0.68833354,104100.0,104090.0,1.62164835]
[1734349287094,0.68833354,104100.0,104090.0,1.75070825]
[1734349287318,0.52935235,104100.0,104090.0,1.62159237]
[1734349287526,0.46174598,104100.0,104090.0,1.7505683]
[1734349287934,0.43273698,104100.0,104090.0,1.92253621]
[1734349288359,0.35588898,104100.0,104090.0,1.75052788]
[1734349288612,0.31729698,104100.0,104090.0,1.75052788]
[1734349288825,0.31729698,104100.0,104090.0,1.92249579]
[1734349289027,0.28817098,104100.0,104090.0,1.92249579]
[1734349289248,0.28817098,104100.0,104090.0,1.75052788]
[1734349289487,0.19211098,104100.0,104090.0,1.75052655]
[1734349289930,0.19211098,104100.0,104090.0,1.36571359]
[1734349290149,0.0806726,104140.0,104130.0,0.203654]
[1734349290150,0.0001726,104140.0,104130.0,0.203654]
[1734349290389,0.12324,104150.0,104130.0,0.51714134]
[1734349290390,0.07574,104150.0,104130.0,0.51714134]
[1734349290640,0.12574,104150.0,104140.0,0.1070801]
[1734349290837,0.12574,104150.0,104140.0,0.26575554]
[1734349291129,0.17414,104150.0,104140.0,0.26575554]
[1734349291546,0.17414,104150.0,104140.0,0.26592428]
[1734349295181,0.17414,104150.0,104140.0,0.25992774]
[1734349296232,0.17414,104150.0,104140.0,0.15380774]
[1734349296671,0.1743124,104150.0,104140.0,0.15380774]
[1734349296905,0.26956287,104150.0,104140.0,0.15380774]
[1734349297102,0.42301184,104150.0,104140.0,0.00016874]
[1734349297326,0.61504184,104150.0,104140.0,0.00016874]
[1734349297795,0.67301184,104150.0,104140.0,0.00016874]
[1734349298192,0.86504184,104150.0,104140.0,0.00016874]
[1734349298873,0.81504184,104150.0,104140.0,0.00016874]
[1734349301725,0.4686031,104150.0,104140.0,0.13460274]
[1734349302571,0.61988179,104150.0,104140.0,0.00016874]
[1734349302811,0.81191179,104150.0,104140.0,0.00016874]
[1734349305946,9.81191179,104150.0,104140.0,0.00016874]
[1734349308078,0.0956,104140.0,104130.0,0.134446]
[1734349308297,0.22155047,104140.0,104130.0,0.134446]
[1734349308501,0.1307,104130.0,104120.0,0.13445]
[1734349310697,0.1307,104130.0,104120.0,0.14044741]
[1734349310879,0.1307,104130.0,104120.0,0.24153032]
[1734349311082,0.1307,104130.0,104120.0,0.24057]
[1734349311930,0.1307,104130.0,104120.0,0.24656716]
[1734349315269,0.1207,104140.0,104120.0,0.65976486]
[1734349315479,0.0751,104140.0,104130.0,0.24152717]
[1734349315680,0.1251,104140.0,104130.0,0.24656375]
[1734349317202,0.1251,104140.0,104130.0,0.10612]
[1734349317412,0.1251,104140.0,104130.0,0.240567]
[1734349318380,0.1718,104140.0,104130.0,0.134447]
[1734349319210,0.1718,104140.0,104130.0,0.24152722]
[1734349319366,0.1718,104140.0,104130.0,0.240567]
[1734349320185,0.1718,104140.0,104130.0,0.134447]
[1734349320374,0.1718,104140.0,104130.0,0.2406532]
[1734349321286,0.1718,104140.0,104130.0,0.1345332]
[1734349322905,0.17184,104140.0,104130.0,0.1345332]
[1734349323318,0.61871167,104140.0,104130.0,8.62e-05]
[1734349323493,0.65159855,104140.0,104130.0,8.62e-05]
[1734349324747,0.90159855,104140.0,104130.0,8.62e-05]
[1734349325292,1.02952884,104140.0,104130.0,8.62e-05]
[1734349325582,0.90159855,104140.0,104130.0,8.62e-05]
[1734349327320,1.20010257,104140.0,104130.0,8.62e-05]
[1734349329191,1.20098699,104140.0,104130.0,8.62e-05]
[1734349331910,1.20115939,104140.0,104130.0,8.62e-05]
[1734349333098,1.29533465,104140.0,104130.0,8.62e-05]
[1734349333407,1.42445465,104140.0,104130.0,8.62e-05]
[1734349333544,0.318486,104120.0,104110.0,0.0149933]
[1734349333750,0.95189767,104120.0,104110.0,0.0149933]
[1734349335638,1.03097216,104120.0,104110.0,0.0149933]
[1734349336687,0.90277803,104120.0,104110.0,0.0149933]
[1734349337708,0.90270191,104120.0,104110.0,0.0149933]
[1734349338352,0.91271171,104120.0,104110.0,0.0149933]
[1734349339802,0.0755,104100.0,104090.0,0.268983]
[1734349341008,0.07566893,104100.0,104090.0,0.268983]
[1734349342254,0.00016893,104100.0,104090.0,0.375103]
[1734349343418,0.00016893,104100.0,104090.0,0.268983]
[1734349344482,0.3196427,104110.0,104090.0,0.403475]
[1734349344713,0.66297363,104110.0,104100.0,0.134486]
[1734349345004,0.47085963,104110.0,104100.0,0.134486]
[1734349345648,0.22085963,104110.0,104100.0,0.134486]
[1734349349623,0.37138738,104110.0,104100.0,0.134486]
[1734349351102,0.22085963,104110.0,104100.0,0.134486]
[1734349352330,0.22085963,104110.0,104100.0,0.14048489]
[1734349355327,0.17085963,104110.0,104100.0,0.14048489]
[1734349355538,0.1718194,104110.0,104100.0,0.14048489]
[1734349357282,0.1718594,104110.0,104100.0,0.14048489]
[1734349358193,0.2218594,104110.0,104100.0,0.14048489]
[1734349358453,0.17089963,104110.0,104100.0,0.14057109]
[1734349358756,0.1720318,104110.0,104100.0,0.14057109]
[1734349358993,0.2220318,104110.0,104100.0,0.14057109]
[1734349359245,0.17107203,104110.0,104100.0,0.14057109]
[1734349359667,0.1720318,104110.0,104100.0,0.14057109]
[1734349360185,0.1720318,104110.0,104100.0,0.14057083]
[1734349360654,0.1720318,104110.0,104100.0,0.14057082]
[1734349361105,0.33136563,104110.0,104100.0,0.14057082]
[1734349361322,0.33040586,104110.0,104100.0,0.14057082]
[1734349362601,0.17107203,104110.0,104100.0,0.14057082]
[1734349362806,0.1720318,104110.0,104100.0,0.1345722]
[1734349363009,0.1720318,104110.0,104100.0,0.14057099]
[1734349363224,0.1720318,104110.0,104100.0,0.1345722]
[1734349363622,0.2220318,104110.0,104100.0,0.1345722]
[1734349363833,0.17107203,104110.0,104100.0,0.1345722]
[1734349364042,0.1720318,104110.0,104100.0,0.1345722]
[1734349366956,0.1720318,104110.0,104100.0,8.62e-05]
[1734349367412,0.1720318,104110.0,104100.0,0.1345722]
[1734349369273,0.1710498,104110.0,104100.0,0.1345722]
[1734349370733,0.3631538,104110.0,104100.0,0.1345722]
[1734349370945,0.36219403,104110.0,104100.0,0.1345722]
[1734349371779,0.17009003,104110.0,104100.0,0.1345722]
[1734349371990,0.1710498,104110.0,104100.0,8.62e-05]
[1734349372379,0.3631538,104110.0,104100.0,8.62e-05]
[1734349372588,0.36219403,104110.0,104100.0,8.62e-05]
[1734349373008,0.51527487,104110.0,104100.0,8.62e-05]
[1734349373317,0.60062364,104110.0,104100.0,8.62e-05]
[1734349373748,0.60075526,104110.0,104100.0,8.62e-05]
[1734349375692,0.85075526,104110.0,104100.0,8.62e-05]
[1734349376372,0.99363052,104110.0,104100.0,8.62e-05]
[1734349376583,1.2928119,104110.0,104100.0,8.62e-05]
[1734349376810,1.34133761,104110.0,104100.0,8.62e-05]
[1734349377023,1.26311702,104110.0,104100.0,8.62e-05]
[1734349377263,1.36311702,104110.0,104100.0,8.62e-05]
[1734349377692,0.073,104100.0,104090.0,0.00025513]
[1734349377900,1.23734426,104100.0,104090.0,0.00025513]
[1734349378114,0.92087406,104100.0,104090.0,0.00025513]
[1734349378328,1.17748594,104100.0,104090.0,0.00025513]
[1734349378562,0.778117,104100.0,104090.0,0.00025513]
[1734349378768,0.83601568,104100.0,104090.0,0.00025513]
[1734349378975,1.02813768,104100.0,104090.0,0.00025513]
[1734349379181,0.55665304,104100.0,104090.0,0.00025513]
[1734349379393,0.74877504,104100.0,104090.0,0.00025513]
[1734349379601,0.62695554,104100.0,104090.0,0.00025513]
[1734349380053,0.95696677,104100.0,104090.0,0.00025513]
[1734349381128,0.57241907,104100.0,104090.0,0.00025513]
[1734349381355,0.95699357,104100.0,104090.0,0.00025513]
[1734349381768,1.20699357,104100.0,104090.0,0.00025513]
[1734349383219,1.33518508,104100.0,104090.0,0.00025513]
[1734349383630,1.20699358,104100.0,104090.0,0.00025513]
[1734349384263,1.48502379,104100.0,104090.0,0.00025513]
[1734349384475,1.27150304,104100.0,104090.0,0.00025513]
[1734349385309,1.48494349,104100.0,104090.0,0.00025513]
[1734349385526,1.32273574,104100.0,104090.0,0.00025513]
[1734349385777,1.61314537,104100.0,104090.0,0.00025513]
[1734349385994,0.361241,104090.0,104080.0,1.69825151]
[1734349386213,1.49334126,104090.0,104080.0,1.69825151]
[1734349386483,1.27829236,104090.0,104080.0,1.5416702]
[1734349386695,1.45176686,104090.0,104080.0,1.5416702]
[1734349386899,1.23839091,104090.0,104080.0,1.5416702]
[1734349387351,1.40162445,104090.0,104080.0,1.4635702]
[1734349388390,1.57202788,104090.0,104080.0,1.4635702]
[1734349388595,1.57202788,104090.0,104080.0,1.20833915]
[1734349389128,1.57202788,104090.0,104080.0,1.02504248]
[1734349389352,1.5719239,104090.0,104080.0,1.02504248]
[1734349389564,1.41140393,104090.0,104080.0,1.02504248]
[1734349390008,1.41104078,104090.0,104080.0,0.95239627]
[1734349390262,1.41104078,104090.0,104080.0,0.93318027]
[1734349390484,1.58129101,104090.0,104080.0,0.83710027]
[1734349390707,1.58129101,104090.0,104080.0,0.66876486]
[1734349390708,1.68760798,104090.0,104080.0,0.66876486]
[1734349390915,1.51739775,104090.0,104080.0,0.66876486]
[1734349391123,1.51739775,104090.0,104080.0,0.63927262]
[1734349391336,1.19821039,104090.0,104080.0,0.60084062]
[1734349391546,1.41081944,104090.0,104080.0,0.58162462]
[1734349391778,1.58091895,104090.0,104080.0,0.56240862]
[1734349392193,1.49588452,104090.0,104080.0,0.56240862]
[1734349392816,1.58024567,104090.0,104080.0,0.56240862]
[1734349393043,1.58024567,104090.0,104080.0,0.57741159]
[1734349393257,1.58024567,104090.0,104080.0,0.53897959]
[1734349393462,1.58024567,104090.0,104080.0,0.51976359]
[1734349393895,1.58024567,104090.0,104080.0,0.44289959]
[1734349394105,1.58010938,104090.0,104080.0,0.44289959]
[1734349394318,1.41014616,104090.0,104080.0,0.44289959]
[1734349395416,1.58003307,104090.0,104080.0,0.44289959]
[1734349396051,1.49481329,104090.0,104080.0,0.44289959]
[1734349396325,1.70742234,104090.0,104080.0,0.44289959]
[1734349396740,1.49481329,104090.0,104080.0,0.36603559]
[1734349396761,1.70742234,104090.0,104080.0,0.34681959]
[1734349396947,1.59896358,104090.0,104080.0,0.34681959]
[1734349397348,1.60190891,104090.0,104080.0,0.28917159]
[1734349397675,1.60190891,104090.0,104080.0,0.25073959]
[1734349398551,1.60190891,104090.0,104060.0,0.0159101]
[1734349398552,0.64939497,104070.0,104060.0,0.0159101]
[1734349398751,0.64939497,104070.0,104060.0,0.0308275]
[1734349398752,0.91507764,104070.0,104060.0,0.0308275]
[1734349399002,0.023,104050.0,104020.0,0.00060316]
[1734349399249,0.56585967,104030.0,104020.0,0.00060316]
[1734349399453,0.77412727,104030.0,104020.0,0.00060316]
[1734349399677,0.86830253,104030.0,104020.0,0.00060316]